{"text_format":"3","workbook":"xlsx","n_sheets":1,"sheets":["BoQ PDD"],"read":"whole","date_system":"1900"}

{"sheet":"BoQ PDD","index":0,"n_rows":45,"n_cols":6,"rows_kept":45,"merged":[[0,0,0,5],[2,1,2,5],[15,0,15,4],[16,1,16,5],[26,1,26,5],[32,0,32,4],[33,1,33,5],[35,1,35,5],[38,0,38,4],[39,1,39,5],[42,0,42,4],[43,0,43,4],[44,0,44,4]]}
["Annexure 1   Bill of Quantities -EAP FOR PAARDEN EILAND ROLLING STOCK DEPOT UPGRADE"]
["Item","Decription","Unit","Qty","Rate/unit","Total cost"]
[1,"Environmental Impact Assessment"]
[null,"Inception meeting","hours",0,{"v":0,"d":"R0.00"},{"$f":"E4*D4","v":0}]
[null,"SCREENING, Site visit, confirmation of  extent of project & alternatives (report)","hours",0,{"v":0,"d":"R0.00"},{"$f":"E5*D5","v":0}]
[null,"Draft scoping report and distribution","hours",0,{"v":0,"d":"R0.00"},0]
[null,"Final scoping report","hours",0,{"v":0,"d":"R0.00"},0]
[null,"Preparing EIA","hours",0,{"v":0,"d":"R0.00"},0]
[null,"Drafting of EIA report (BAR)","hours",0,{"v":0,"d":"R0.00"},0]
[null,"Final EIA report and distribution thereof","hours",0,{"v":0,"d":"R0.00"},0]
[null,"Consultation with the CA","hours",0,{"v":0,"d":"R0.00"},0]
[null,"Formulation of EMPr for the project","hours",0,{"v":0,"d":"R0.00"},0]
[null,"Monthly audit x 24 months","hours",0,{"v":0,"d":"R0.00"},0]
[null,"Monthly meetings x  30 months (29 months Turnkey contract period + 1 month for close-out)","hours",0,{"v":0,"d":"R0.00"},0]
[null,"Close out report","hours",0,{"v":0,"d":"R0.00"},0]
["SUBTOTAL",{"$nulls":4},{"$f":"SUM(F4:F15)","v":0}]
[2]
[null," Pre application process for EIA and WULa","hours",0,0,{"$f":"E18*D18","v":0}]
[null,"Public consultation"]
[null,"Preparing List of Interested & Affected Parties","hours",0,0,{"$f":"E20*D20","v":0}]
[null,"Compilation and distribution of background document to I&AP's","hours",0,0,0]
[null,"Preparing newspaper advertisements, onsite notices & translations","hours",0,0,0]
[null,"Publishing of Newspaper adverts","Quantity",0,0,{"$f":"E23*D23","v":0}]
[null,"Public meetings and/or stakeholder meetings / direct liaison","hours",0,0,{"$f":"E24*D24","v":0}]
[null,"Hiring of venue for public meetings, if required","Sum",0,0,{"$f":"E25*D25","v":0}]
[null,"Compilation of public consultation report","hours",0,0,{"$f":"E26*D26","v":0}]
[3,"WULA reports"]
[null,"Site investigation ","hours",0,0,{"$f":"E28*D28","v":0}]
[null,"Compilation of Motivational report","hours",0,0,{"$f":"E29*D29","v":0}]
[null,"Compilation of draft technical report","hours",0,0,0]
[null,"Compilation of final Technical Report","hours",0,0,{"$f":"E31*D31","v":0}]
[null,"Submission of report to relevant authority and addressing any queries by authority, if required, until WUL is received","hours",0,0,{"$f":"E32*D32","v":0}]
["SUBTOTAL",{"$nulls":4},{"$f":"SUM(F18:F31)","v":0}]
[4,"Environmental Monitoring Services"]
[null,"ECO on site once a week (three hours a week for 24 months)","hours",0,0,{"$f":"E35*D35","v":0}]
[5,"Specialists studies"]
[null,"Name studies that you envisage to be done and motivate the reasons why","Quantity",0,0,{"$f":"E37*D37","v":0}]
[null,"Name studies that you envisage to be done and motivate the reasons why","Quantity",0,0,{"$f":"E38*D38","v":0}]
["SUBTOTAL",{"$nulls":4},{"$f":"SUM(F37:F38)","v":0}]
[5,"Disbursements "]
[null,"Printing ","pages",0,0,{"$f":"E41*D41","v":0}]
[null,"Travel","Km",0,0,0]
["SUBTOTAL",{"$nulls":4},{"$f":"F16+F33+F39","v":0}]
["Vat @ 15%",{"$nulls":4},{"$f":"F43*15%","v":0}]
["Total (Incl. Vat)",{"$nulls":4},{"$f":"F44+F43","v":0}]